bitfinex-derivatives/quotes_SOLF0:USTF0_20250331
["timestamp","ask_amount","ask_price","bid_price","bid_amount"]
[1743407204484,2.0723,125.72,125.68,7.9573]
[1743407204682,0.0526689,125.7,125.68,7.9573]
[1743407204884,0.0526689,125.7,125.65,30.32]
[1743407205389,8.0090689,125.7,125.65,30.32]
[1743407205687,0.0526689,125.7,125.65,30.32]
[1743407206089,0.0526689,125.7,125.65,388.32]
[1743407206285,0.0526689,125.7,125.69,7.9567]
[1743407206486,0.0526689,125.7,125.69,38.2767]
[1743407207384,0.0526689,125.7,125.69,30.32]
[1743407207788,0.0526689,125.7,125.67,30.32]
[1743407208685,0.0526689,125.7,125.68,7.957]
[1743407208884,8.0089689,125.7,125.68,7.957]
[1743407209691,7.9567,125.69,125.67,38.2776]
[1743407211493,0.0526689,125.7,125.67,30.32]
[1743407211990,0.0526689,125.7,125.68,7.9573]
[1743407212190,0.0526689,125.7,125.67,30.32]
[1743407212591,0.0526689,125.7,125.68,7.9573]
[1743407212792,8.0087689,125.7,125.68,7.9573]
[1743407213590,0.0526689,125.7,125.69,7.9567]
[1743407220601,2.1126,125.77,125.68,2.1194]
[1743407220802,7.9539,125.74,125.68,2.1194]
[1743407220997,7.9539,125.74,125.72,7.9545]
[1743407221198,2.1126,125.77,125.71,30.32]
[1743407221600,1.9674,125.76,125.7,7.9559]
[1743407221801,0.06030703,125.75,125.73,0.05544179]
[1743407222102,7.9535,125.74,125.73,0.05544179]
[1743407225002,7.9564,125.7,125.68,7.9571]
[1743407225406,22.96678451,125.74,125.66,118.68446171]
[1743407225609,7.957,125.69,125.67,7.9576]
[1743407226005,7.9579,125.67,125.66,88.36446171]
[1743407226212,0.05691131,125.69,125.66,88.36446171]
[1743407226604,8.01401131,125.69,125.67,7.9576]
[1743407227003,0.05691131,125.69,125.65,88.36446171]
[1743407227209,0.05691131,125.69,125.68,7.9573]
[1743407227916,0.05691131,125.69,125.67,7.9577]
[1743407228416,8.01411131,125.69,125.67,7.9577]
[1743407228619,0.05691131,125.69,125.66,7.9582]
[1743407229117,7.9576,125.68,125.66,7.9582]
[1743407230119,0.05691131,125.69,125.64,388.32]
[1743407230717,0.05691131,125.69,125.68,7.9573]
[1743407230920,0.05691131,125.69,125.68,38.2773]
[1743407231420,24.93418451,125.76,125.68,30.32]
[1743407231918,7.9546,125.73,125.68,30.32]
[1743407232118,7.9546,125.73,125.7,7.9556]
[1743407232520,8.00814135,125.73,125.7,8.01455605]
[1743407232721,0.05354135,125.73,125.7,0.05895605]
[1743407232917,14.40147087,125.73,125.7,0.05895605]
[1743407233113,14.34792952,125.71,125.7,0.05895605]
[1743407233423,22.30332952,125.71,125.7,0.05895605]
[1743407235122,7.9554,125.71,125.7,0.05895605]
[1743407236422,16.33293447,125.72,125.7,0.05895605]
[1743407236621,7.9551,125.72,125.7,0.05895605]
[1743407236822,0.05354135,125.73,125.7,0.05895605]
[1743407237224,7.9548,125.72,125.7,8.01445605]
[1743407237423,0.05354135,125.73,125.7,0.05895605]
[1743407238122,0.05354135,125.73,125.71,7.9549]
[1743407239824,8.00784135,125.73,125.71,7.9549]
[1743407241030,8.00784135,125.73,125.7,8.01465605]
[1743407241325,0.05354135,125.73,125.7,0.05895605]
[1743407241531,14.35573447,125.72,125.7,0.05895605]
[1743407241930,7.9554,125.71,125.7,0.05895605]
[1743407242123,14.35573447,125.72,125.7,0.05895605]
[1743407242629,7.9554,125.71,125.7,0.05895605]
[1743407242832,14.40735752,125.73,125.7,0.05895605]
[1743407243024,22.36195752,125.73,125.7,0.05895605]
[1743407243530,7.9549,125.72,125.7,0.05895605]
[1743407244026,7.9549,125.72,125.7,8.01475605]
[1743407244223,8.00804135,125.73,125.7,0.05895605]
[1743407244424,8.00804135,125.73,125.71,7.9551]
[1743407244730,7.9552,125.72,125.7,0.05895605]
[1743407245119,7.9552,125.72,125.7,8.01475605]
[1743407245327,8.00784135,125.73,125.7,0.05895605]
[1743407245925,8.00784135,125.73,125.7,8.01455605]
[1743407246729,8.00784135,125.73,125.71,7.9552]
[1743407246931,0.05354135,125.73,125.71,7.9552]
[1743407247125,0.05354135,125.73,125.7,0.05895605]
[1743407247631,8.00824135,125.73,125.7,0.05895605]
[1743407247834,0.05354135,125.73,125.7,8.01475605]
[1743407248524,14.40735752,125.73,125.7,0.05895605]
[1743407248730,14.35381617,125.71,125.65,88.36446171]
[1743407249025,7.958,125.67,125.65,96.32316171]
[1743407249419,14.35381617,125.71,125.65,88.36446171]
[1743407249727,14.35381617,125.71,125.68,7.9568]
[1743407249928,8.01495664,125.69,125.65,118.68446171]
[1743407250230,8.01495664,125.69,125.67,7.9576]
[1743407250525,0.05815664,125.69,125.65,30.32]
[1743407250725,14.41197281,125.69,125.64,49.72232839]
[1743407250926,14.41197281,125.69,125.64,57.68182839]
[1743407251128,7.9583,125.67,125.64,27.36182839]
[1743407251328,14.41197281,125.69,125.64,27.36182839]
[1743407251525,7.9587,125.66,125.64,27.36182839]
[1743407251830,8.01698197,125.66,125.64,27.36182839]
[1743407252030,0.05828197,125.66,125.65,7.9592]
[1743407253434,0.05828197,125.66,125.64,7.9595]
[1743407254232,8.01688197,125.66,125.64,7.9595]
[1743407255035,0.05828197,125.66,125.63,316.62]
[1743407255635,0.05828197,125.66,125.64,7.9598]
[1743407255835,0.05828197,125.66,125.63,316.62]
[1743407256037,0.05828197,125.66,125.65,7.9592]
[1743407260137,0.05828197,125.66,125.63,316.62]
[1743407261042,8.01718197,125.66,125.64,7.9595]
[1743407262141,0.05828197,125.66,125.65,7.9592]
[1743407263439,14.35381617,125.72,125.7,7.956]
[1743407263640,14.35381617,125.72,125.67,30.32]
[1743407264639,8.01089465,125.71,125.69,7.9564]
[1743407265341,0.05549465,125.71,125.68,0.05377495]
[1743407266542,0.05549465,125.71,125.69,7.9562]
[1743407267237,8.01109465,125.71,125.69,7.9562]
[1743407268542,8.01109465,125.71,125.68,8.01077495]
[1743407268739,0.05549465,125.71,125.68,0.05377495]
[1743407269433,0.05549465,125.71,125.69,7.9563]
[1743407269745,8.01089465,125.71,125.69,7.9563]
[1743407269941,0.05549465,125.71,125.69,7.9563]
[1743407270241,0.05549465,125.71,125.68,0.05377495]
[1743407272243,14.35381617,125.78,125.69,14.35381617]
[1743407272543,14.35381617,125.78,125.72,7.9544]
[1743407272739,7.9528,125.76,125.7,30.3]
[1743407272945,14.35381617,125.78,125.7,30.3]
[1743407273148,14.35381617,125.78,125.74,7.9535]
[1743407273339,0.05949211,125.75,125.74,7.9535]
[1743407274047,0.05949211,125.75,125.73,0.06097525]
[1743407274547,14.35381617,125.74,125.68,358.0]
[1743407274746,16.39681617,125.74,125.68,30.3]
[1743407275047,14.35381617,125.78,125.69,14.35381617]
[1743407275247,32.3067,125.81,125.71,14.35381617]
[1743407275448,14.35381617,125.8,125.72,30.3]
[1743407275641,22.30381617,125.8,125.77,7.9512]
[1743407275940,14.40509106,125.8,125.77,7.9512]
[1743407276143,14.40509106,125.8,125.75,30.35280137]
[1743407276946,7.9504,125.79,125.76,7.9518]
[1743407277246,14.40509106,125.8,125.75,30.35280137]
[1743407277945,7.9514,125.78,125.75,38.30520137]
[1743407278141,14.40509106,125.8,125.75,30.35280137]
[1743407278543,7.9506,125.79,125.76,7.9518]
[1743407278743,14.40509106,125.8,125.76,7.9518]
[1743407278938,7.951,125.78,125.76,7.9518]
[1743407280349,14.40509106,125.8,125.75,38.30540137]
[1743407280548,14.40509106,125.8,125.75,30.35280137]
[1743407280847,8.00117489,125.8,125.78,7.9508]
[1743407281053,0.05127489,125.8,125.78,30.28]
[1743407281250,0.05127489,125.8,125.78,30.33280137]
[1743407281644,0.05127489,125.8,125.79,7.9503]
[1743407282449,14.35381617,125.86,125.82,7.9482]
[1743407282749,14.35381617,125.86,125.78,30.28]
[1743407283649,0.05095426,125.83,125.81,8.00456159]
[1743407284151,0.05095426,125.83,125.82,7.9484]
[1743407284452,131.61187512,125.94,125.82,358.0]
[1743407284643,134.99803503,125.93,125.84,14.35381617]
[1743407284844,134.99803503,125.93,125.86,7.9456]
[1743407285044,134.99803503,125.93,125.85,30.28]
[1743407285344,14.35381617,125.93,125.85,30.28]
[1743407285848,0.05104983,125.9,125.88,0.05827902]
[1743407286051,0.05104983,125.9,125.89,30.28]
[1743407286350,0.05104983,125.9,125.89,38.2239]
[1743407287351,18.55591617,125.95,125.91,7.9427]
[1743407287651,14.35381617,125.93,125.87,30.28]
[1743407288243,7.9431,125.91,125.87,38.2248]
[1743407288649,0.06083491,125.9,125.88,0.05406676]
[1743407289551,8.00433491,125.9,125.88,0.05406676]
[1743407289850,0.06083491,125.9,125.88,0.05406676]
[1743407290046,2.16783491,125.9,125.88,0.05406676]
[1743407290352,2.16783491,125.9,125.81,2.0456]
[1743407290353,14.35381617,125.89,125.81,2.0456]
[1743407290545,16.34561617,125.89,125.82,30.26]
[1743407290741,16.34561617,125.89,125.83,7.9475]
[1743407291048,16.34561617,125.89,125.82,30.26]
[1743407291249,1.9918,125.89,125.86,7.9457]
[1743407291449,0.05180721,125.87,125.86,7.9457]
[1743407291651,0.05180721,125.87,125.85,30.26]
[1743407292045,0.05180721,125.87,125.84,0.05023699]
[1743407292251,7.99710721,125.87,125.84,0.05023699]
[1743407292454,0.05180721,125.87,125.84,0.05023699]
[1743407293053,0.05180721,125.87,125.85,7.9461]
[1743407295453,0.05180721,125.87,125.84,0.05023699]
[1743407295962,0.05180721,125.87,125.85,7.9466]
[1743407296153,0.05180721,125.87,125.84,0.05023699]
[1743407296759,0.05180721,125.87,125.86,7.9459]
[1743407296958,0.05180721,125.87,125.86,38.2059]
[1743407298157,44.61381617,125.93,125.86,30.26]
[1743407298158,14.35381617,125.93,125.86,30.26]
[1743407298758,14.35381617,125.93,125.87,7.9448]
[1743407299354,7.9435,125.9,125.89,0.05085342]
[1743407303653,0.05160916,125.91,125.89,30.29085342]
[1743407304762,0.05160916,125.91,125.9,7.9434]
[1743407305756,0.05160916,125.91,125.89,30.29085342]
[1743407306467,0.05160916,125.91,125.89,0.05085342]
[1743407307058,7.9434,125.9,125.89,0.05085342]
[1743407307458,2.09070916,125.91,125.89,0.05085342]
[1743407307665,0.05160916,125.91,125.89,0.05085342]
[1743407308064,0.05160916,125.91,125.9,7.9434]
[1743407308266,0.05160916,125.91,125.9,30.24]
[1743407308766,7.99440916,125.91,125.9,30.24]
[1743407308960,0.05160916,125.91,125.9,30.24]
[1743407309457,7.99440916,125.91,125.9,30.24]
[1743407310064,0.05160916,125.91,125.9,38.1834]
[1743407311363,7.99440916,125.91,125.9,30.24]
[1743407311570,14.40542533,125.91,125.89,0.05085342]
[1743407312065,7.9434,125.9,125.89,0.05085342]
[1743407316175,7.9434,125.9,125.81,362.0495]
[1743407316176,14.35381617,125.9,125.83,1.77926]
[1743407316381,30.29160916,125.91,125.83,1.77926]
[1743407316382,14.35381617,125.88,125.83,1.77926]
[1743407316767,2.1587,125.87,125.83,1.77926]
[1743407316974,7.9472,125.84,125.83,1.77926]
[1743407319280,7.99993353,125.85,125.83,1.77926]
[1743407319877,7.9472,125.84,125.83,1.77926]
[1743407320178,0.05303353,125.85,125.83,1.77926]
[1743407320979,0.05303353,125.85,125.83,9.72676]
[1743407321175,0.05303353,125.85,125.83,1.77926]
[1743407321375,0.05303353,125.85,125.84,7.9472]
[1743407321586,0.05303353,125.85,125.83,1.77926]
[1743407322085,0.05303353,125.85,125.83,9.72686]
[1743407322286,7.99973353,125.85,125.83,9.72686]
[1743407324482,7.9472,125.84,125.83,1.77926]
[1743407325286,7.99983353,125.85,125.83,1.77926]
[1743407325493,7.99983353,125.85,125.83,9.72676]
[1743407325987,7.9472,125.84,125.83,1.77926]
[1743407326688,7.99983353,125.85,125.83,9.72706]
[1743407327489,7.9472,125.84,125.83,1.77926]
[1743407330390,7.99993353,125.85,125.83,1.77926]
[1743407330789,0.05303353,125.85,125.83,1.77926]
[1743407331195,7.9472,125.84,125.83,1.77926]
[1743407335396,14.35381617,125.84,125.77,38.1913]
[1743407335899,7.95,125.8,125.78,7.951]
[1743407336104,7.95,125.8,125.77,30.24]
[1743407336105,30.24,125.85,125.77,44.59381617]
[1743407336302,14.35381617,125.86,125.77,44.59381617]
[1743407336601,0.06043041,125.82,125.8,0.05475158]
[1743407336800,7.9468,125.85,125.81,30.24]
[1743407337101,0.05957541,125.82,125.81,38.1891]
[1743407337297,7.9473,125.84,125.81,30.24]
[1743407337602,0.05780131,125.83,125.81,38.1888]
[1743407337801,8.00600131,125.83,125.81,38.1888]
[1743407338011,8.00600131,125.83,125.81,38.24842745]
[1743407340603,7.9484,125.82,125.81,30.29962745]
[1743407340806,0.05780131,125.83,125.81,30.29962745]
[1743407341301,8.00590131,125.83,125.81,38.24832745]
[1743407342204,7.9484,125.82,125.81,30.29962745]
[1743407342403,7.9484,125.82,125.81,0.05962745]
[1743407345207,0.05780131,125.83,125.81,0.05962745]
[1743407345602,0.05780131,125.83,125.82,7.9484]
[1743407345801,0.05780131,125.83,125.81,0.05962745]
[1743407346895,0.05780131,125.83,125.82,7.9484]
[1743407347307,0.05780131,125.83,125.81,0.05962745]
[1743407348103,8.00620131,125.83,125.81,0.05962745]
[1743407348303,0.05780131,125.83,125.81,0.05962745]
[1743407349508,0.05780131,125.83,125.81,8.00842745]
[1743407350810,8.00610131,125.83,125.81,0.05962745]
[1743407351308,7.9484,125.82,125.81,0.05962745]
[1743407355105,46.60611617,125.82,125.76,88.36446171]
[1743407355313,14.35381617,125.8,125.76,88.36446171]
[1743407355517,7.9516,125.77,125.76,88.36446171]
[1743407355911,14.35381617,125.78,125.75,117.40295554]
[1743407356106,14.40820099,125.78,125.75,117.43599427]
[1743407356315,7.9522,125.76,125.75,117.43599427]
[1743407356516,22.30601617,125.76,125.75,98.82689427]
[1743407356814,7.9522,125.76,125.75,70.14284446]
[1743407358421,14.40820099,125.78,125.75,0.03303873]
[1743407359019,7.9522,125.76,125.75,0.03303873]
[1743407361921,52.56601617,125.76,125.75,0.03303873]
[1743407362715,52.56601617,125.76,125.75,3.873e-05]
[1743407368623,7.9554,125.71,125.69,7.9563]
[1743407369130,7.9554,125.71,125.68,32.363]
[1743407369720,7.9563,125.7,125.68,2.103]
[1743407369925,7.9563,125.7,125.66,30.26]
[1743407370318,7.9563,125.7,125.67,7.9575]
[1743407371729,7.9563,125.7,125.68,7.9573]
[1743407372730,0.05822108,125.71,125.66,30.26]
[1743407373030,0.05822108,125.71,125.69,7.9564]
[1743407374226,0.05822108,125.71,125.66,30.26]
[1743407374432,0.05822108,125.71,125.67,14.35381617]
[1743407375425,0.05822108,125.71,125.7,7.956]
[1743407376533,0.05822108,125.71,125.67,30.26]
[1743407376925,0.05822108,125.71,125.68,7.9569]
[1743407377631,14.41203725,125.71,125.65,34.4764]
[1743407377830,14.41203725,125.71,125.65,4.2164]
[1743407378027,44.67203725,125.71,125.65,4.2164]
[1743407378628,44.67203725,125.71,125.66,7.9585]
[1743407379027,7.9572,125.69,125.66,7.9585]
[1743407379227,44.67203725,125.71,125.66,7.9585]
[1743407379434,44.67203725,125.71,125.65,4.2164]
[1743407379633,7.9585,125.67,125.61,300.57381617]
[1743407379830,7.9585,125.67,125.63,30.26]
[1743407380029,0.05703066,125.65,125.64,7.9598]
[1743407380231,7.9577,125.68,125.63,30.26]
[1743407380435,0.0587299,125.66,125.63,30.26]
[1743407380633,0.0587299,125.66,125.65,7.9592]
[1743407381130,14.35381617,125.71,125.67,7.9573]
[1743407381537,7.9565,125.7,125.68,7.9569]
[1743407382034,14.35381617,125.73,125.65,14.35381617]
[1743407382232,0.05306697,125.7,125.68,0.05872991]
[1743407382538,44.61381617,125.75,125.66,30.26]
[1743407382836,0.05661082,125.7,125.69,7.9567]
[1743407383037,44.61381617,125.75,125.67,1.9912]
[1743407383239,0.05141137,125.71,125.68,0.05667377]
[1743407383429,330.89381617,125.77,125.69,30.26]
[1743407383635,7.9538,125.74,125.72,7.9546]
[1743407384337,7.9541,125.73,125.71,7.9551]
[1743407384641,7.9541,125.73,125.72,0.05980934]
[1743407388840,0.05817724,125.74,125.72,0.05980934]
[1743407389143,14.35381617,125.81,125.72,30.31980934]
[1743407389446,7.9506,125.79,125.72,32.2666]
[1743407389844,44.61381617,125.81,125.75,7.9523]
[1743407390045,44.61381617,125.81,125.72,32.2666]
[1743407390346,7.951,125.78,125.77,0.05981577]
[1743407390544,22.30481617,125.78,125.77,0.05981577]
[1743407390736,52.56481617,125.78,125.77,0.05981577]
[1743407391744,52.56481617,125.78,125.77,1.577e-05]
[1743407392344,52.57381617,125.78,125.7,30.26]
[1743407392536,14.35381617,125.76,125.7,30.26]
[1743407392946,7.9538,125.74,125.7,30.26]
[1743407393347,7.9538,125.74,125.71,7.955]
[1743407393647,8.0093741,125.73,125.71,8.00520488]
[1743407394442,8.0093741,125.73,125.71,0.05020488]
[1743407395249,8.0093741,125.73,125.71,8.00550488]
[1743407395947,8.0093741,125.73,125.71,0.05020488]
[1743407396144,0.0551741,125.73,125.71,0.05020488]
[1743407396546,0.0551741,125.73,125.72,7.9548]
[1743407396746,0.0551741,125.73,125.71,0.05020488]
[1743407397147,0.0551741,125.73,125.71,8.00530488]
[1743407398451,0.0551741,125.73,125.72,7.9548]
[1743407398750,0.0551741,125.73,125.71,0.05020488]
[1743407398944,0.0551741,125.73,125.71,8.00520488]
[1743407399141,0.0551741,125.73,125.71,0.05020488]
[1743407399551,0.0551741,125.73,125.71,2.19230488]
[1743407399752,7.9525,125.76,125.71,2.19230488]
[1743407400751,14.35381617,125.78,125.71,2.19230488]
[1743407400955,0.05327351,125.75,125.71,16.54612105]
[1743407401153,16.34021617,125.81,125.73,14.35381617]
[1743407401355,7.9506,125.79,125.74,30.24]
[1743407402055,14.35381617,125.81,125.74,30.24]
[1743407402255,0.05759822,125.78,125.75,0.05522012]
[1743407402455,7.9516,125.77,125.75,0.05522012]
[1743407402654,0.05759822,125.78,125.75,0.05522012]
[1743407402955,7.9516,125.77,125.75,0.05522012]
[1743407404358,7.9522,125.76,125.75,0.05522012]
[1743407407450,14.35381617,125.77,125.67,16.36431617]
[1743407407651,14.35381617,125.74,125.67,32.2505]
[1743407407852,7.9552,125.72,125.67,32.2505]
[1743407408459,7.9544,125.73,125.68,0.05755242]
[1743407408651,0.05954416,125.71,125.68,0.05755242]
[1743407408852,0.05954416,125.71,125.67,46.60431617]
[1743407409053,0.05954416,125.71,125.68,8.01719917]
[1743407409261,0.05954416,125.71,125.68,0.06019917]
[1743407410758,0.05954416,125.71,125.68,8.01739917]
[1743407411051,14.35381617,125.81,125.69,14.35381617]
[1743407411251,7.9502,125.8,125.75,7.9527]
[1743407411448,7.9502,125.8,125.75,38.1927]
[1743407411646,14.35381617,125.82,125.75,30.24]
[1743407411856,7.9507,125.79,125.75,30.24]
[1743407412054,14.35381617,125.82,125.75,30.24]
[1743407412356,0.05889674,125.78,125.76,0.05928664]
[1743407413656,8.01019674,125.78,125.76,0.05928664]
[1743407414662,0.05889674,125.78,125.76,0.05928664]
[1743407415661,0.05889674,125.78,125.76,8.01148664]
[1743407415857,0.05889674,125.78,125.76,0.05928664]
[1743407416265,0.05889674,125.78,125.77,7.9516]
[1743407416456,7.9488,125.82,125.76,2.08418664]
[1743407416763,7.9482,125.83,125.79,7.9501]
[1743407416962,7.9482,125.83,125.79,38.1901]
[1743407417563,0.05407102,125.82,125.8,0.05530556]
[1743407419465,7.9491,125.81,125.8,0.05530556]
[1743407431977,0.05407102,125.82,125.8,0.05530556]
[1743407432178,0.05407102,125.82,125.8,8.00460556]
[1743407432783,0.05407102,125.82,125.8,0.05530556]
[1743407433277,7.9491,125.81,125.8,0.05530556]
[1743407438680,28.76170336,125.82,125.73,316.46]
[1743407438882,28.76170336,125.82,125.7,445.70402837]
[1743407438883,14.35381617,125.78,125.71,1.9559]
[1743407439079,14.35381617,125.78,125.71,32.1759]
[1743407439384,7.954,125.74,125.71,40.1312]
[1743407439583,16.32551617,125.78,125.71,1.9559]
[1743407439786,7.9544,125.73,125.71,2.0127924]
[1743407439984,0.05103811,125.74,125.71,0.0568924]
[1743407440184,14.40485428,125.74,125.71,0.0568924]
[1743407440482,22.30861617,125.72,125.71,0.0568924]
[1743407441681,44.57381617,125.72,125.66,30.22]
[1743407441882,44.57381617,125.72,125.65,4.0563]
[1743407442081,44.57381617,125.72,125.65,12.0152]
[1743407442283,7.9579,125.68,125.65,12.0152]
[1743407442587,44.57381617,125.72,125.65,4.0563]
[1743407442883,8.01250372,125.68,125.65,4.11213219]
[1743407443187,0.05460372,125.68,125.65,2.01173219]
[1743407443378,0.05460372,125.68,125.65,0.05583219]
[1743407443573,14.40841989,125.68,125.65,0.05583219]
[1743407443983,7.9586,125.66,125.65,0.05583219]
[1743407446287,22.31241617,125.66,125.65,0.05583219]
[1743407446682,52.55241617,125.66,125.65,0.05583219]
[1743407449988,7.9582,125.67,125.65,0.05583219]
[1743407450691,44.64841989,125.68,125.65,0.05583219]
[1743407451290,7.9586,125.66,125.65,0.05583219]
[1743407451487,22.31241617,125.66,125.65,0.05583219]
[1743407453999,7.9582,125.67,125.65,0.05583219]
[1743407454502,44.64841989,125.68,125.65,0.05583219]
[1743407455303,7.9585,125.67,125.65,0.05583219]
[1743407456195,14.40841989,125.68,125.65,0.05583219]
[1743407457205,7.9586,125.66,125.65,0.05583219]
[1743407460709,22.31241617,125.66,125.65,0.05583219]
[1743407461001,52.55241617,125.66,125.65,0.05583219]
[1743407463911,38.1986,125.66,125.65,0.05583219]
[1743407464108,7.958,125.67,125.65,0.05583219]
[1743407465008,22.36601989,125.68,125.65,0.05583219]
[1743407465209,0.05460372,125.68,125.65,0.05583219]
[1743407465408,14.40841989,125.68,125.65,0.05583219]
[1743407465605,7.9586,125.66,125.65,0.05583219]
[1743407468414,22.31241617,125.66,125.65,0.05583219]
[1743407470715,52.55241617,125.66,125.65,0.05583219]
[1743407472115,7.9625,125.6,125.58,4.1194]
[1743407473310,8.01525041,125.6,125.58,4.17521242]
[1743407474318,8.01525041,125.6,125.58,12.13881242]
[1743407474517,0.05275041,125.6,125.58,12.13881242]
[1743407475622,0.05275041,125.6,125.59,7.963]
[1743407475818,14.35381617,125.64,125.58,4.17521242]
[1743407476018,7.9612,125.62,125.59,7.9625]
[1743407476319,14.35381617,125.64,125.58,4.17521242]
[1743407476521,7.961,125.63,125.59,7.9626]
[1743407476821,0.05873299,125.62,125.59,7.9626]
[1743407477121,0.05873299,125.62,125.58,4.17521242]
[1743407477415,8.01993299,125.62,125.59,7.9629]
[1743407477625,0.05873299,125.62,125.58,4.17521242]
[1743407477822,7.9617,125.61,125.58,4.17521242]
[1743407478425,7.9617,125.61,125.58,12.13841242]
[1743407479123,17.21980991,125.62,125.59,7.9628]
[1743407480427,0.05873299,125.62,125.6,7.9622]
[1743407480629,0.05873299,125.62,125.58,13.37488934]
[1743407481031,8.02013299,125.62,125.58,13.37488934]
[1743407481527,8.02013299,125.62,125.59,7.9629]
[1743407482529,0.05873299,125.62,125.6,9.19967692]
[1743407482929,0.05873299,125.62,125.61,7.9617]
[1743407483433,9.19967692,125.65,125.62,7.9609]
[1743407483636,9.19967692,125.65,125.59,39.43967692]
[1743407483930,9.19967692,125.64,125.6,7.9621]
[1743407484424,17.15987692,125.64,125.61,8.01562857]
[1743407484631,0.05593963,125.63,125.61,0.05422857]
[1743407485030,0.05593963,125.63,125.62,7.961]
[1743407485429,9.19967692,125.66,125.61,9.25390549]
[1743407485628,9.19967692,125.66,125.63,7.9601]
[1743407486136,9.19967692,125.66,125.61,9.25390549]
[1743407486337,7.9597,125.65,125.61,9.25390549]
[1743407486631,0.05762903,125.65,125.61,9.25390549]
[1743407486830,8.01712903,125.65,125.62,7.961]
[1743407487532,8.01712903,125.65,125.61,9.25390549]
[1743407487937,7.9598,125.64,125.63,7.9604]
[1743407488130,7.9598,125.64,125.61,9.25390549]
[1743407488334,7.9598,125.64,125.62,7.9608]
[1743407488632,9.19967692,125.64,125.61,0.05422857]
[1743407489037,7.9607,125.63,125.61,0.05422857]
[1743407489230,9.25730595,125.65,125.61,0.05422857]
[1743407489629,0.05762903,125.65,125.61,9.25390549]
[1743407490030,8.01722903,125.65,125.63,7.9602]
[1743407490735,0.05762903,125.65,125.63,7.9602]
[1743407492226,8.01692903,125.65,125.63,7.9602]
[1743407492433,0.05762903,125.65,125.63,7.9602]
[1743407493237,0.05762903,125.65,125.64,7.9598]
[1743407495940,9.25730595,125.65,125.61,0.05422857]
[1743407496143,9.19967692,125.64,125.61,0.05422857]
[1743407496441,9.19967692,125.63,125.61,0.05422857]
[1743407496642,7.9611,125.62,125.61,0.05422857]
[1743407497141,7.9608,125.63,125.61,0.05422857]
[1743407497939,7.9608,125.63,125.61,8.01592857]
[1743407498641,7.9608,125.63,125.61,0.05422857]
[1743407499344,17.15987692,125.64,125.61,8.01582857]
[1743407499540,9.19967692,125.64,125.61,0.05422857]
[1743407499932,7.9608,125.63,125.61,0.05422857]
[1743407501444,7.9611,125.62,125.61,0.05422857]
[1743407503438,17.16077692,125.62,125.61,0.05422857]
[1743407504549,9.19967692,125.62,125.55,360.1136]
[1743407504744,9.19967692,125.57,125.55,358.0]
[1743407504944,9.19967692,125.57,125.53,132.54669256]
[1743407505143,7.9652,125.56,125.53,140.51319256]
[1743407505447,9.19967692,125.55,125.53,132.54669256]
[1743407505644,17.16517692,125.55,125.53,132.54669256]
[1743407505948,17.16517692,125.55,125.54,75.70342837]
[1743407506143,17.16517692,125.55,125.54,62.65762837]
[1743407506447,7.9655,125.55,125.54,62.65762837]
[1743407506645,17.16517692,125.55,125.54,62.65762837]
[1743407506846,17.16517692,125.55,125.54,50.49952837]
[1743407507150,7.9662,125.54,125.53,132.59762523]
[1743407507449,47.40587692,125.54,125.53,132.59762523]
[1743407507646,52.60582709,125.54,125.53,132.59762523]
[1743407507840,7.9668,125.53,125.52,220.91115428]
[1743407508050,7.9668,125.53,125.52,157.54269379]
[1743407508238,44.63962709,125.54,125.5,18.50544375]
[1743407508451,22.36772709,125.51,125.5,18.50544375]
[1743407508642,44.63962709,125.51,125.48,132.73460826]
[1743407508849,7.97,125.48,125.47,119.68312562]
[1743407509149,38.21,125.48,125.47,119.68312562]
[1743407509350,60.56962709,125.48,125.47,24.75293884]
[1743407509543,7.9706,125.47,125.46,263.4012016]
[1743407509747,22.37022709,125.47,125.46,248.4507016]
[1743407510647,14.39962709,125.47,125.37,4.1027]
[1743407510843,14.39962709,125.45,125.37,4.1027]
[1743407511050,14.39962709,125.47,125.44,7.9721]
[1743407511243,22.36932709,125.49,125.43,30.24]
[1743407511548,14.39962709,125.49,125.43,30.24]
[1743407511750,0.05997466,125.47,125.45,0.05206331]
[1743407512355,0.05997466,125.47,125.46,7.9712]
[1743407512547,43.87062504,125.5,125.46,30.26]
[1743407513051,43.87062504,125.5,125.45,0.05206331]
[1743407513543,18.93555626,125.52,125.45,0.05206331]